[Event "VII Open Internacional Quart de Poblet"]
[Site "Quart de Poblet, Spain"]
[Date "2019.08.06"]
[Round "3.2"]
[White "Kovacevic, Slobodan"]
[Black "Sanchez Saez, Francisco"]
[Result "1-0"]
[TimeControl "90m +30s por jugada"]
[WhiteFideId "902152"]
[BlackFideId "2231743"]
[WhiteElo "2252"]
[BlackElo "2359"]

1. d4 {[%clk 01:30:57]} g6 {[%clk 01:30:32]} {[%emt 00:00:03]} 2. c3 {[%clk
01:30:18]} {[%emt 00:01:07]} Bg7 {[%clk 01:30:54]} {[%emt 00:00:08]} 3. Nf3
{[%clk 01:30:32]} {[%emt 00:00:35]} d6 {[%clk 01:31:08]} {[%emt 00:00:04]} 4.
e4 {[%clk 01:30:43]} {[%emt 00:00:08]} Nf6 {[%clk 01:31:31]} {[%emt 00:00:15]}
5. Qc2 {[%clk 01:30:43]} {[%emt 00:00:26]} O-O {[%clk 01:31:24]} {[%emt
00:00:38]} 6. Bg5 {[%clk 01:30:55]} {[%emt 00:00:17]} h6 {[%clk 01:31:21]}
{[%emt 00:00:32]} 7. Bh4 {[%clk 01:31:22]} {[%emt 00:00:03]} Qe8 {[%clk
01:31:27]} {[%emt 00:00:25]} 8. a4 {[%clk 01:31:23]} {[%emt 00:00:26]} e5
{[%clk 01:31:35]} {[%emt 00:00:22]} 9. dxe5 {[%clk 01:22:31]} {[%emt 00:09:21]}
dxe5 {[%clk 01:31:56]} {[%emt 00:00:22]} 10. Bc4 {[%clk 01:22:38]} {[%emt
00:00:14]} a5 {[%clk 01:29:48]} {[%emt 00:02:33]} 11. O-O {[%clk 01:22:40]}
{[%emt 00:00:30]} Nh5 {[%clk 01:29:02]} {[%emt 00:01:15]} 12. Re1 {[%clk
01:22:25]} {[%emt 00:00:44]} Nd7 {[%clk 01:26:36]} {[%emt 00:02:56]} 13. Nfd2
{[%clk 01:22:01]} {[%emt 00:00:55]} Nb6 {[%clk 01:26:23]} {[%emt 00:01:02]} 14.
Bf1 {[%clk 01:22:05]} {[%emt 00:00:10]} Be6 {[%clk 01:26:24]} {[%emt 00:00:24]}
15. f3 {[%clk 01:22:13]} {[%emt 00:00:42]} Nf4 {[%clk 01:24:32]} {[%emt
00:02:02]} 16. b3 {[%clk 01:21:04]} {[%emt 00:01:40]} Nd7 {[%clk 01:18:22]}
{[%emt 00:06:39]} 17. Na3 {[%clk 01:19:22]} {[%emt 00:02:14]} g5 {[%clk
01:10:35]} {[%emt 00:08:14]} 18. Bf2 {[%clk 01:18:42]} {[%emt 00:01:09]} Qe7
{[%clk 01:10:54]} {[%emt 00:00:14]} 19. Nac4 {[%clk 01:18:01]} {[%emt
00:01:09]} Rfd8 {[%clk 01:07:43]} {[%emt 00:03:40]} 20. Red1 {[%clk 01:14:28]}
{[%emt 00:04:04]} Nc5 {[%clk 01:06:35]} {[%emt 00:01:37]} 21. Be3 {[%clk
01:13:59]} {[%emt 00:01:04]} Nfd3 {[%clk 01:01:32]} {[%emt 00:05:28]} 22. Kh1
{[%clk 01:02:20]} {[%emt 00:12:09]} b6 {[%clk 00:55:02]} {[%emt 00:07:09]} 23.
Rab1 {[%clk 00:54:22]} {[%emt 00:08:19]} Nf4 {[%clk 00:50:23]} {[%emt
00:05:09]} 24. Bg1 {[%clk 00:53:48]} {[%emt 00:01:03]} Rd7 {[%clk 00:49:03]}
{[%emt 00:01:54]} 25. Ne3 {[%clk 00:50:45]} {[%emt 00:03:30]} Rad8 {[%clk
00:46:31]} {[%emt 00:03:04]} 26. Bb5 {[%clk 00:38:41]} {[%emt 00:12:35]} Rd6
{[%clk 00:44:59]} {[%emt 00:02:30]} 27. Nec4 {[%clk 00:38:07]} {[%emt
00:00:31]} Bxc4 {[%clk 00:37:21]} {[%emt 00:08:09]} 28. Nxc4 {[%clk 00:31:23]}
{[%emt 00:07:14]} Rxd1 {[%clk 00:35:33]} {[%emt 00:02:18]} 29. Rxd1 {[%clk
00:31:51]} {[%emt 00:00:08]} g4 {[%clk 00:31:03]} {[%emt 00:05:00]} 30. Rxd8+
{[%clk 00:25:23]} {[%emt 00:06:53]} Qxd8 {[%clk 00:31:27]} {[%emt 00:00:07]} 31.
fxg4 {[%clk 00:25:07]} {[%emt 00:00:43]} Ncd3 {[%clk 00:20:25]} {[%emt
00:11:32]} 32. Ne3 {[%clk 00:23:11]} {[%emt 00:02:26]} Bf8 {[%clk 00:19:35]}
{[%emt 00:01:20]} 33. Qd2 {[%clk 00:21:00]} {[%emt 00:02:41]} Ba3 {[%clk
00:16:37]} {[%emt 00:03:27]} 34. Nf5 {[%clk 00:12:31]} {[%emt 00:09:25]} Bc1
{[%clk 00:12:38]} {[%emt 00:04:04]} 35. Qc2 {[%clk 00:12:47]} {[%emt 00:00:17]}
Ba3 {[%clk 00:12:50]} {[%emt 00:00:15]} 36. Nxh6+ {[%clk 00:09:56]} {[%emt
00:03:22]} Kh7 {[%clk 00:13:13]} {[%emt 00:00:09]} 37. Nxf7 {[%clk 00:09:45]}
{[%emt 00:00:41]} Qf6 {[%clk 00:13:09]} {[%emt 00:00:31]} 38. Bxd3 {[%clk
00:08:33]} {[%emt 00:01:43]} Qxf7 {[%clk 00:13:31]} {[%emt 00:00:42]} 39. Bc4
{[%clk 00:08:29]} {[%emt 00:00:07]} Qd7 {[%clk 00:13:37]} {[%emt 00:00:33]} 40.
g3 {[%clk 00:06:54]} {[%emt 00:01:52]} Nh3 {[%clk 00:12:41]} {[%emt 00:01:22]}
41. Qe2 {[%clk 00:06:57]} {[%emt 00:00:30]} Bc5 {[%clk 00:12:35]} {[%emt
00:00:33]} 42. Bxc5 {[%clk 00:06:39]} {[%emt 00:00:48]} bxc5 {[%clk 00:12:59]}
{[%emt 00:00:19]} 43. Kg2 {[%clk 00:06:56]} {[%emt 00:00:03]} Ng5 {[%clk
00:13:15]} {[%emt 00:00:11]} 44. h4 {[%clk 00:06:50]} {[%emt 00:00:36]} Ne6
{[%clk 00:13:21]} {[%emt 00:00:24]} 45. Qd3 {[%clk 00:05:33]} {[%emt 00:02:04]}
Qc8 {[%clk 00:13:02]} {[%emt 00:00:35]} 46. Qe3 {[%clk 00:04:47]} {[%emt
00:01:13]} Ng7 {[%clk 00:12:20]} {[%emt 00:01:12]} 47. g5 {[%clk 00:04:09]}
{[%emt 00:01:08]} Qd7 {[%clk 00:12:21]} {[%emt 00:00:31]} 48. Qd3 {[%clk
00:03:18]} {[%emt 00:01:19]} Qc8 {[%clk 00:10:30]} {[%emt 00:02:24]} 49. Qf3
{[%clk 00:03:24]} {[%emt 00:00:20]} Qd7 {[%clk 00:10:30]} {[%emt 00:00:31]} 50.
Qf7 {[%clk 00:02:34]} {[%emt 00:01:20]} Qc8 {[%clk 00:07:39]} {[%emt 00:03:21]}
51. Qf6 {[%clk 00:02:46]} {[%emt 00:00:17]} 1-0

[Event "VII Open Internacional Quart de Poblet"]
[Site "Quart de Poblet, Spain"]
[Date "2019.08.06"]
[Round "3.3"]
[White "Gavarrete, Nahun"]
[Black "Nieves Cabanes, Javier"]
[Result "1-0"]
[TimeControl "90m +30s por jugada"]
[WhiteFideId "8400709"]
[BlackFideId "22245707"]
[WhiteElo "2349"]
[BlackElo "2211"]

1. c4 {[%clk 01:22:46]} Nf6 {[%clk 01:30:52]} {[%emt 00:00:34]} 2. g3 {[%clk
01:23:08]} {[%emt 00:00:03]} e6 {[%clk 01:31:04]} 3. Bg2 {[%clk 01:23:30]}
{[%emt 00:00:16]} d5 {[%clk 01:31:05]} {[%emt 00:00:18]} 4. Nf3 {[%clk
01:23:52]} {[%emt 00:00:22]} d4 {[%clk 01:31:11]} {[%emt 00:00:12]} 5. O-O
{[%clk 01:24:12]} {[%emt 00:00:15]} c5 {[%clk 01:31:12]} {[%emt 00:00:20]} 6.
d3 {[%clk 01:24:29]} {[%emt 00:00:20]} Nc6 {[%clk 01:29:53]} {[%emt 00:01:43]}
7. e3 {[%clk 01:22:04]} {[%emt 00:02:54]} e5 {[%clk 01:26:32]} {[%emt
00:03:52]} 8. exd4 {[%clk 01:22:25]} {[%emt 00:00:23]} exd4 {[%clk 01:26:57]}
{[%emt 00:00:09]} 9. Bg5 {[%clk 01:18:34]} {[%emt 00:04:21]} Be7 {[%clk
01:26:44]} {[%emt 00:00:30]} 10. Nbd2 {[%clk 01:18:55]} {[%emt 00:00:14]} O-O
{[%clk 01:26:31]} {[%emt 00:00:31]} 11. a3 {[%clk 01:18:56]} {[%emt 00:00:33]}
Bf5 {[%clk 01:20:34]} {[%emt 00:06:24]} 12. Ne1 {[%clk 01:19:17]} {[%emt
00:00:18]} Qd7 {[%clk 01:19:04]} {[%emt 00:01:51]} 13. Rb1 {[%clk 01:19:37]}
{[%emt 00:00:19]} a5 {[%clk 01:14:13]} {[%emt 00:05:13]} 14. Qa4 {[%clk
01:01:23]} {[%emt 00:18:50]} Bh3 {[%clk 00:57:29]} {[%emt 00:17:32]} 15. Bxf6
{[%clk 00:58:11]} {[%emt 00:03:18]} Bxf6 {[%clk 00:57:20]} {[%emt 00:00:38]} 16.
Qb5 {[%clk 00:54:07]} {[%emt 00:04:34]} Bxg2 {[%clk 00:56:31]} {[%emt
00:01:41]} 17. Nxg2 {[%clk 00:53:43]} {[%emt 00:00:46]} Ne5 {[%clk 00:55:22]}
{[%emt 00:01:25]} 18. Qxd7 {[%clk 00:50:30]} {[%emt 00:03:43]} Nxd7 {[%clk
00:55:46]} {[%emt 00:00:10]} 19. b4 {[%clk 00:48:06]} {[%emt 00:02:50]} axb4
{[%clk 00:42:59]} {[%emt 00:13:17]} 20. axb4 {[%clk 00:48:33]} {[%emt
00:00:17]} cxb4 {[%clk 00:42:40]} {[%emt 00:00:39]} 21. Rxb4 {[%clk 00:48:49]}
{[%emt 00:00:10]} Nc5 {[%clk 00:42:47]} {[%emt 00:00:40]} 22. Ne4 {[%clk
00:45:46]} {[%emt 00:03:16]} Nxd3 {[%clk 00:42:05]} {[%emt 00:01:12]} 23. Rxb7
{[%clk 00:37:28]} {[%emt 00:09:02]} Be5 {[%clk 00:36:20]} {[%emt 00:06:04]} 24.
Rb3 {[%clk 00:29:39]} {[%emt 00:08:25]} f5 {[%clk 00:35:33]} {[%emt 00:01:08]}
25. Ng5 {[%clk 00:30:02]} {[%emt 00:00:07]} Nc5 {[%clk 00:34:50]} {[%emt
00:01:35]} 26. Rb5 {[%clk 00:30:26]} Rac8 {[%clk 00:33:40]} {[%emt 00:01:27]}
27. Nf3 {[%clk 00:30:37]} {[%emt 00:00:16]} Bf6 {[%clk 00:31:55]} {[%emt
00:02:18]} 28. Nf4 {[%clk 00:30:47]} {[%emt 00:00:21]} Ne4 {[%clk 00:21:54]}
{[%emt 00:10:50]} 29. Rxf5 {[%clk 00:17:02]} {[%emt 00:13:54]} g6 {[%clk
00:21:58]} {[%emt 00:00:24]} 30. Rd5 {[%clk 00:16:24]} {[%emt 00:01:30]} Rxc4
{[%clk 00:21:36]} {[%emt 00:00:29]} 31. Re1 {[%clk 00:15:34]} {[%emt 00:01:48]}
Nc3 {[%clk 00:19:25]} {[%emt 00:02:13]} 32. Rd7 {[%emt 00:02:08]} Nb5 {[%clk
00:15:49]} {[%emt 00:02:45]} 33. Nd5 {[%clk 00:13:52]} {[%emt 00:01:55]} Bd8
{[%clk 00:14:16]} {[%emt 00:02:04]} 34. Ne5 {[%clk 00:11:07]} {[%emt 00:03:21]}
Rc2 {[%clk 00:14:25]} {[%emt 00:00:17]} 35. Ng4 {[%clk 00:10:13]} {[%emt
00:01:22]} d3 {[%clk 00:08:22]} {[%emt 00:06:33]} 36. Nh6+ {[%clk 00:04:23]}
{[%emt 00:06:20]} Kh8 {[%clk 00:08:43]} {[%emt 00:00:08]} 37. Nf7+ {[%clk
00:04:43]} {[%emt 00:00:25]} Kg8 {[%clk 00:08:01]} {[%emt 00:00:58]} 38. Nh6+
{[%clk 00:05:11]} {[%emt 00:00:34]} Kh8 {[%clk 00:08:26]} 39. Nf7+ {[%clk
00:05:38]} Kg8 {[%clk 00:08:52]} {[%emt 00:00:04]} 40. Nxd8 {[%clk 00:05:00]}
{[%emt 00:00:44]} Re2 {[%clk 00:04:06]} {[%emt 00:05:16]} 41. Rf1 {[%clk
00:03:42]} {[%emt 00:01:48]} Nd4 {[%clk 00:03:01]} {[%emt 00:01:38]} 42. Ne7+
{[%clk 00:03:42]} {[%emt 00:00:28]} Rxe7 {[%emt 00:02:03]} 43. Rxd4 {[%emt
00:00:10]} Rf3 {[%clk 00:01:46]} {[%emt 00:00:05]} 44. Kg2 {[%clk 00:04:20]}
{[%emt 00:00:20]} 1-0

[Event "VII Open Internacional Quart de Poblet"]
[Site "Quart de Poblet, Spain"]
[Date "2019.08.06"]
[Round "3.4"]
[White "Carbonell Sancho, Marc"]
[Black "Castella Garcia, Fausto"]
[Result "1/2-1/2"]
[TimeControl "90m +30s por jugada"]
[WhiteFideId "32029969"]
[BlackFideId "3501922"]
[WhiteElo "2187"]
[BlackElo "2315"]

1. e4 {[%clk 01:30:57]} c5 {[%clk 01:30:49]} {[%emt 00:00:31]} 2. Nf3 {[%clk
01:31:22]} {[%emt 00:00:04]} g6 {[%clk 01:30:47]} {[%emt 00:00:06]} 3. d4
{[%clk 01:31:47]} {[%emt 00:00:20]} Bg7 {[%clk 01:31:10]} 4. c4 {[%clk
01:32:06]} {[%emt 00:00:06]} Qa5+ {[%clk 01:30:29]} {[%emt 00:01:09]} 5. Nc3
{[%clk 01:26:35]} {[%emt 00:06:00]} d6 {[%clk 01:26:19]} {[%emt 00:04:46]} 6.
h3 {[%clk 01:20:33]} {[%emt 00:06:26]} Nc6 {[%clk 01:22:19]} {[%emt 00:04:29]}
7. d5 {[%clk 01:12:58]} {[%emt 00:08:05]} Nd4 {[%clk 01:22:21]} {[%emt
00:00:28]} 8. Bd2 {[%clk 01:11:54]} {[%emt 00:01:35]} Nf6 {[%clk 01:17:23]}
{[%emt 00:05:53]} 9. Bd3 {[%clk 01:11:56]} {[%emt 00:00:06]} Nd7 {[%clk
01:15:02]} {[%emt 00:02:48]} 10. Nb5 {[%clk 00:53:26]} {[%emt 00:19:00]} Nxf3+
{[%clk 01:12:13]} {[%emt 00:03:18]} 11. Qxf3 {[%clk 00:53:34]} {[%emt
00:00:35]} Qd8 {[%clk 00:57:49]} {[%emt 00:14:43]} 12. Bc3 {[%clk 00:51:55]}
{[%emt 00:02:31]} Ne5 {[%clk 00:56:04]} {[%emt 00:01:51]} 13. Qe2 {[%clk
00:52:11]} {[%emt 00:00:15]} a6 {[%clk 00:55:56]} {[%emt 00:00:37]} 14. Na3
{[%clk 00:52:12]} {[%emt 00:00:30]} O-O {[%clk 00:51:14]} {[%emt 00:05:10]} 15.
Nc2 {[%clk 00:47:03]} {[%emt 00:05:42]} f5 {[%clk 00:34:45]} {[%emt 00:17:00]}
16. exf5 {[%clk 00:46:42]} {[%emt 00:00:48]} Nxd3+ {[%clk 00:35:05]} {[%emt
00:00:37]} 17. Qxd3 {[%clk 00:47:06]} {[%emt 00:00:03]} Bxf5 {[%clk 00:35:24]}
18. Qd2 {[%clk 00:47:27]} {[%emt 00:00:03]} Bxc3 {[%clk 00:35:02]} {[%emt
00:00:45]} 19. Qxc3 {[%clk 00:47:51]} {[%emt 00:00:39]} Bxc2 {[%clk 00:30:44]}
{[%emt 00:04:14]} 20. Qxc2 {[%clk 00:47:58]} {[%emt 00:00:24]} Qa5+ {[%clk
00:31:02]} {[%emt 00:00:12]} 21. Kf1 {[%clk 00:47:01]} {[%emt 00:01:26]} Rf7
{[%clk 00:28:57]} {[%emt 00:02:37]} 22. f3 {[%clk 00:46:37]} {[%emt 00:00:59]}
b5 {[%clk 00:28:22]} {[%emt 00:01:02]} 23. b3 {[%clk 00:44:37]} {[%emt
00:02:26]} bxc4 {[%clk 00:21:34]} {[%emt 00:07:21]} 24. bxc4 {[%clk 00:45:01]}
{[%emt 00:00:04]} Rf4 {[%clk 00:19:01]} {[%emt 00:03:03]} 25. Kf2 {[%clk
00:42:38]} {[%emt 00:02:53]} Qb4 {[%clk 00:16:47]} {[%emt 00:02:44]} 26. Rac1
{[%clk 00:42:43]} {[%emt 00:00:41]} Raf8 {[%clk 00:16:15]} {[%emt 00:00:45]} 27.
Rhe1 {[%clk 00:40:29]} {[%emt 00:02:47]} Rd4 {[%clk 00:15:49]} {[%emt
00:00:54]} 28. Red1 {[%clk 00:25:50]} {[%emt 00:15:10]} Rff4 {[%clk 00:13:53]}
{[%emt 00:02:25]} 29. Rxd4 {[%clk 00:25:06]} {[%emt 00:01:16]} Rxd4 {[%clk
00:14:21]} {[%emt 00:00:04]} 30. Ke2 {[%clk 00:22:38]} {[%emt 00:02:54]} a5
{[%emt 00:04:52]} 1/2-1/2

[Event "VII Open Internacional Quart de Poblet"]
[Site "Quart de Poblet, Spain"]
[Date "2019.08.06"]
[Round "3.5"]
[White "Chernikov, Vladimir"]
[Black "Hernandez Lopez, Alberto"]
[Result "1-0"]
[TimeControl "90m +30s por jugada"]
[WhiteFideId "14112914"]
[BlackFideId "24575208"]
[WhiteElo "2315"]
[BlackElo "2044"]

1. c4 {[%clk 01:30:57]} {[%emt 00:00:10]} Nf6 {[%clk 01:30:46]} {[%emt
00:00:07]} 2. Nc3 {[%clk 01:30:32]} {[%emt 00:00:56]} g6 {[%clk 01:31:09]}
{[%emt 00:00:08]} 3. d4 {[%clk 01:27:52]} {[%emt 00:03:12]} Bg7 {[%clk
01:31:36]} {[%emt 00:00:04]} 4. Bg5 {[%clk 01:28:13]} {[%emt 00:00:04]} d6
{[%clk 01:25:58]} {[%emt 00:06:08]} 5. Qd2 {[%clk 01:28:16]} {[%emt 00:00:27]}
h6 {[%clk 01:25:12]} {[%emt 00:01:18]} 6. Bh4 {[%clk 01:28:05]} {[%emt
00:00:46]} g5 {[%clk 01:23:57]} {[%emt 00:01:53]} 7. Bg3 {[%clk 01:28:28]}
{[%emt 00:00:09]} Nh5 {[%clk 01:23:36]} {[%emt 00:00:32]} 8. e4 {[%clk
01:27:22]} {[%emt 00:01:39]} e5 {[%clk 01:20:25]} {[%emt 00:03:43]} 9. dxe5
{[%clk 01:26:17]} {[%emt 00:01:30]} Nxg3 {[%clk 01:20:50]} {[%emt 00:00:27]} 10.
hxg3 {[%clk 01:26:43]} Bxe5 {[%clk 01:20:22]} {[%emt 00:00:39]} 11. f4 {[%clk
01:25:52]} {[%emt 00:01:26]} Bg7 {[%clk 01:19:13]} {[%emt 00:01:36]} 12. O-O-O
{[%clk 01:25:01]} {[%emt 00:01:22]} Bg4 {[%clk 01:17:59]} {[%emt 00:01:57]} 13.
Be2 {[%clk 01:23:03]} {[%emt 00:02:15]} Bxe2 {[%emt 00:03:45]} 14. Ncxe2 {[%clk
01:22:05]} {[%emt 00:00:53]} Nc6 {[%clk 01:14:13]} {[%emt 00:01:35]} 15. Nf3
{[%clk 01:22:16]} {[%emt 00:00:19]} gxf4 {[%clk 01:05:17]} {[%emt 00:09:26]} 16.
gxf4 {[%clk 01:20:25]} {[%emt 00:02:20]} Qe7 {[%clk 01:04:19]} {[%emt
00:01:32]} 17. Ng3 {[%clk 01:12:13]} {[%emt 00:08:38]} Qe6 {[%clk 01:01:52]}
{[%emt 00:02:57]} 18. Qd5 {[%clk 01:05:09]} {[%emt 00:07:33]} O-O-O {[%clk
00:51:51]} {[%emt 00:10:31]} 19. Qxe6+ {[%clk 01:01:48]} {[%emt 00:03:53]} fxe6
{[%clk 00:52:18]} {[%emt 00:00:22]} 20. Nh5 {[%clk 01:02:10]} Rdg8 {[%clk
00:48:58]} {[%emt 00:03:38]} 21. f5 {[%clk 01:01:02]} {[%emt 00:02:03]} exf5
{[%clk 00:48:38]} {[%emt 00:00:28]} 22. exf5 {[%clk 01:01:21]} {[%emt
00:00:08]} Be5 {[%clk 00:48:09]} {[%emt 00:00:59]} 23. f6 {[%clk 00:38:22]}
{[%emt 00:23:37]} Rxg2 {[%clk 00:43:05]} {[%emt 00:05:25]} 24. Rhg1 {[%clk
00:38:33]} {[%emt 00:00:46]} Bxb2+ {[%clk 00:36:53]} {[%emt 00:06:17]} 25. Kb1
{[%clk 00:39:02]} {[%emt 00:00:09]} Rxg1 {[%emt 00:00:28]} 26. Rxg1 {[%clk
00:39:15]} {[%emt 00:00:49]} Bxf6 {[%clk 00:35:55]} {[%emt 00:00:49]} 27. Nxf6
{[%clk 00:39:43]} {[%emt 00:00:19]} Na5 {[%clk 00:29:22]} {[%emt 00:06:48]} 28.
Nd2 {[%clk 00:36:48]} {[%emt 00:03:24]} h5 {[%clk 00:29:27]} {[%emt 00:00:58]}
29. Rg5 {[%clk 00:36:28]} {[%emt 00:00:19]} b6 {[%clk 00:28:42]} {[%emt
00:01:13]} 30. Nxh5 {[%clk 00:36:20]} {[%emt 00:00:39]} Kb7 {[%clk 00:27:27]}
{[%emt 00:01:57]} 31. Nf6 {[%clk 00:34:41]} {[%emt 00:01:56]} Rh4 {[%clk
00:27:27]} {[%emt 00:00:43]} 32. Rg4 {[%clk 00:29:20]} {[%emt 00:05:41]} Rxg4
{[%clk 00:27:04]} {[%emt 00:00:52]} 33. Nxg4 {[%clk 00:29:41]} {[%emt
00:00:07]} a6 {[%clk 00:27:12]} {[%emt 00:00:22]} 34. Ne3 {[%clk 00:27:53]}
{[%emt 00:02:16]} b5 {[%clk 00:27:04]} {[%emt 00:00:38]} 35. Kc2 {[%clk
00:27:55]} {[%emt 00:00:39]} c6 {[%clk 00:26:19]} {[%emt 00:01:41]} 36. Nb3
{[%clk 00:24:42]} {[%emt 00:03:07]} Nxc4 {[%clk 00:25:52]} {[%emt 00:00:57]} 37.
Nxc4 {[%clk 00:25:07]} {[%emt 00:00:40]} bxc4 {[%clk 00:26:19]} 38. Na5+ {[%clk
00:25:34]} Kb6 {[%clk 00:26:41]} {[%emt 00:00:03]} 39. Nxc4+ {[%clk 00:26:02]}
Kc5 {[%clk 00:27:09]} 40. Kb3 {[%clk 00:25:55]} {[%emt 00:00:16]} d5 {[%clk
00:25:05]} {[%emt 00:02:38]} 41. Ne5 {[%clk 00:24:19]} {[%emt 00:02:03]} Kd6
{[%clk 00:24:44]} {[%emt 00:00:53]} 42. Nf3 {[%clk 00:24:04]} {[%emt 00:00:50]}
c5 {[%clk 00:20:52]} {[%emt 00:04:17]} 43. Ka4 {[%clk 00:23:06]} {[%emt
00:01:32]} Kc6 {[%clk 00:18:38]} {[%emt 00:02:38]} 44. Ka5 {[%clk 00:22:33]}
{[%emt 00:01:02]} Kb7 {[%clk 00:13:19]} {[%emt 00:05:57]} 45. Ne5 {[%clk
00:18:51]} {[%emt 00:04:05]} Kc7 {[%clk 00:10:26]} {[%emt 00:03:23]} 46. Kxa6
{[%clk 00:18:22]} {[%emt 00:00:59]} Kd6 {[%clk 00:10:30]} {[%emt 00:00:37]} 47.
Nf3 {[%clk 00:18:45]} {[%emt 00:00:03]} Kc6 {[%clk 00:07:48]} {[%emt 00:03:07]}
48. Ka5 {[%clk 00:18:30]} {[%emt 00:00:48]} d4 {[%clk 00:07:55]} {[%emt
00:00:17]} 49. Nd2 {[%clk 00:18:38]} {[%emt 00:00:22]} Kd5 {[%clk 00:07:13]}
{[%emt 00:01:19]} 50. Kb5 {[%clk 00:19:01]} d3 {[%clk 00:07:32]} {[%emt
00:00:22]} 51. a4 {[%clk 00:18:45]} {[%emt 00:00:40]} Kd4 {[%clk 00:08:01]} 52.
a5 {[%clk 00:17:27]} {[%emt 00:01:46]} Kc3 {[%clk 00:08:26]} {[%emt 00:00:05]}
53. Ne4+ {[%clk 00:17:43]} {[%emt 00:00:11]} Kd4 {[%clk 00:08:46]} {[%emt
00:00:15]} 54. Nxc5 {[%clk 00:18:03]} {[%emt 00:00:08]} 1-0